bitfinex-derivatives/quotes_ETHF0:USTF0_20250426
["timestamp","ask_amount","ask_price","bid_price","bid_amount"]
[1745672066948,1.11384,1795.0,1794.8,6.9393]
[1745672067149,3.57964,1795.0,1794.8,6.9393]
[1745672067344,1.11391,1794.9,1794.8,7.8429]
[1745672067553,2.75531,1794.9,1794.8,7.8429]
[1745672070148,2.75531,1794.9,1794.8,6.1186]
[1745672072249,1.11391,1794.9,1794.8,6.1186]
[1745672072447,1.11391,1794.9,1794.8,6.9686]
[1745672073353,1.11391,1794.9,1794.8,8.6912]
[1745672073549,1.11391,1794.9,1794.8,7.8412]
[1745672080560,1.11391,1794.9,1794.8,6.1186]
[1745672082954,1.11391,1794.9,1794.8,7.7257]
[1745672122094,1.11391,1794.9,1794.8,6.1186]
[1745672122290,1.11391,1794.9,1794.8,5.308]
[1745672123193,1.11397,1794.8,1794.7,1.7323]
[1745672124096,1.11397,1794.8,1794.7,7.0403]
[1745672129196,1.91737,1794.8,1794.7,7.0403]
[1745672136307,1.91737,1794.8,1794.7,5.308]
[1745672137801,6.91737,1794.8,1794.7,5.308]
[1745672137996,7.78157,1794.8,1794.7,5.308]
[1745672138203,7.78157,1794.8,1794.5,0.8327]
[1745672138204,1.11409,1794.6,1794.5,0.8327]
[1745672138805,1.11422,1794.4,1794.3,3.2078]
[1745672139203,1.11422,1794.4,1794.3,5.308]
[1745672139408,1.93722,1794.4,1794.3,5.308]
[1745672139808,1.93722,1794.4,1794.3,6.9293]
[1745672141312,1.11422,1794.4,1794.3,6.9293]
[1745672141805,1.11422,1794.4,1794.3,10.1371]
[1745672144411,1.11422,1794.4,1794.3,6.9293]
[1745672147809,2.704,1794.5,1794.3,6.9293]
[1745672148014,1.1142,1794.5,1794.4,1.716]
[1745672149013,1.93714,1794.6,1794.4,1.716]
[1745672149216,1.93714,1794.6,1794.5,0.8706]
[1745672149407,1.93714,1794.6,1794.5,1.6909]
[1745672149704,1.93714,1794.6,1794.5,3.4069]
[1745672150113,1.93714,1794.6,1794.5,8.7149]
[1745672152218,1.6021,1794.7,1794.5,13.03682]
[1745672152407,1.6021,1794.7,1794.6,1.6777]
[1745672152603,4.32172,1794.9,1794.6,1.6777]
[1745672152807,4.32172,1794.9,1794.6,2.79175]
[1745672153010,5.95562,1794.9,1794.6,2.79175]
[1745672153215,1.6339,1794.8,1794.7,1.7488]
[1745672154019,2.74787,1794.8,1794.7,1.7488]
[1745672154209,2.74787,1794.8,1794.7,7.0568]
[1745672157413,1.11397,1794.8,1794.7,7.0568]
[1745672162919,1.11397,1794.8,1794.7,7.9028]
[1745672167829,1.91197,1794.8,1794.7,7.9028]
[1745672169829,1.11397,1794.8,1794.7,7.9028]
[1745672170028,3.2078,1795.7,1794.8,2.78493]
[1745672170329,1.6398,1795.4,1795.3,1.11366]
[1745672170628,0.7976,1795.6,1795.5,1.11353]
[1745672170822,1.6398,1795.8,1795.6,1.11342]
[1745672171018,1.11322,1796.0,1795.7,1.11341]
[1745672171228,1.11329,1795.9,1795.7,2.6066]
[1745672171424,1.11335,1795.8,1795.7,2.6066]
[1745672172341,1.11335,1795.8,1795.7,7.9146]
[1745672172542,1.11333,1795.9,1795.7,7.9146]
[1745672172743,2.73355,1795.8,1795.7,6.1659]
[1745672172939,2.73355,1795.8,1795.7,5.308]
[1745672175348,1.6202,1795.8,1795.7,5.308]
[1745672176741,2.73355,1795.8,1795.7,5.308]
[1745672177648,7.73355,1795.8,1795.7,5.308]
[1745672177843,7.82468403,1795.8,1795.7,5.308]
[1745672178250,1.11343,1795.7,1795.4,3.2078]
[1745672178546,4.52253,1795.7,1795.4,3.2078]
[1745672178944,1.11353,1795.5,1795.4,3.2078]
[1745672180348,1.11353,1795.5,1795.4,8.5158]
[1745672186750,1.11353,1795.5,1795.4,10.1123]
[1745672191256,1.11353,1795.5,1795.4,5.308]
[1745672194257,1.11353,1795.5,1795.4,6.9317]
[1745672199967,1.11353,1795.5,1795.4,5.308]
[1745672200567,2.90698259,1795.5,1795.4,5.308]
[1745672201065,1.11366,1795.3,1795.2,3.2078]
[1745672201673,2.81586,1795.3,1795.2,3.2078]
[1745672202169,2.81586,1795.3,1795.2,8.5158]
[1745672202371,2.81586,1795.3,1795.2,9.3308]
[1745672206466,2.81586,1795.3,1795.2,10.1792]
[1745672207669,2.81586,1795.3,1795.2,6.9714]
[1745672208066,2.81586,1795.3,1795.2,8.6579]
[1745672216779,1.11366,1795.3,1795.2,8.6579]
[1745672226186,1.93686,1795.3,1795.2,6.123]
[1745672226777,3.53786,1795.3,1795.2,6.123]
[1745672230384,1.11366,1795.3,1795.2,6.123]
[1745672231082,3.2078,1795.4,1795.2,6.123]
[1745672231287,1.11366,1795.3,1795.2,6.123]
[1745672237788,2.80876,1795.3,1795.2,6.123]
[1745672238295,1.6951,1795.3,1795.2,6.123]
[1745672240898,1.6951,1795.3,1795.2,7.23672]
[1745672241594,1.6951,1795.3,1795.2,10.44452]
[1745672243497,1.90748,1795.5,1795.3,1.11365]
[1745672243693,1.73,1795.4,1795.3,2.84115]
[1745672244298,1.73,1795.4,1795.3,8.14915]
[1745672245484,0.7939,1795.5,1795.4,1.1136]
[1745672245690,1.6903,1795.6,1795.5,1.11353]
[1745672245997,1.6903,1795.6,1795.5,1.95113]
[1745672246297,1.6903,1795.6,1795.5,7.25913]
[1745672250201,3.8,1795.9,1795.5,6.1456]
[1745672250401,3.8,1795.9,1795.8,1.11335]
[1745672250588,4.8396,1796.0,1795.8,1.11335]
[1745672251199,5.95284,1796.0,1795.8,6.42135]
[1745672251599,1.6849,1795.9,1795.8,7.28435]
[1745672251900,1.6849,1795.9,1795.8,6.171]
[1745672253996,2.79819,1795.9,1795.8,6.171]
[1745672258108,1.11329,1795.9,1795.8,6.171]
[1745672258406,1.11322,1796.0,1795.8,11.1047]
[1745672258706,1.11322,1796.0,1795.9,1.7259]
[1745672259099,2.84912,1796.0,1795.9,1.7259]
[1745672260097,2.84912,1796.0,1795.9,7.0339]
[1745672268812,2.84912,1796.0,1795.9,5.308]
[1745672272818,2.84912,1796.0,1795.9,6.9184]
[1745672277316,0.8132,1796.1,1795.9,6.9184]
[1745672277523,1.11319,1796.1,1796.0,1.7453]
[1745672277815,1.11319,1796.1,1796.0,2.5993]
[1745672278223,2.71569,1796.1,1796.0,7.9073]
[1745672281323,2.71569,1796.1,1796.0,7.0533]
[1745672289921,2.71569,1796.1,1796.0,5.308]
[1745672292422,7.71569,1796.1,1796.0,3.9752]
[1745672292614,7.71569,1796.1,1796.0,1e-05]
[1745672292615,7.80681274,1796.1,1796.0,1e-05]
[1745672293025,7.80681274,1796.1,1795.2,1.6149]
[1745672293026,1.11366,1795.3,1795.2,1.6149]
[1745672293228,1.11366,1795.3,1795.2,6.9229]
[1745672293922,1.11361,1795.4,1795.2,6.9229]
[1745672294117,2.70223,1795.4,1795.2,6.9229]
[1745672294316,2.70223,1795.4,1795.2,5.308]
[1745672294317,1.11366,1795.3,1795.2,5.308]
[1745672294523,2.70226,1795.3,1795.2,5.308]
[1745672296427,1.5886,1795.3,1795.2,5.308]
[1745672296625,1.11361,1795.4,1795.2,7.019]
[1745672296830,1.11361,1795.4,1795.3,1.711]
[1745672297329,1.11366,1795.3,1795.2,6.1013]
[1745672297527,1.11366,1795.3,1795.2,7.8123]
[1745672298123,1.11366,1795.3,1795.2,5.308]
[1745672298833,0.8685,1795.5,1795.2,5.308]
[1745672299128,2.74744,1795.4,1795.2,6.9926]
[1745672299328,1.11366,1795.3,1795.2,6.9926]
[1745672300523,1.11366,1795.3,1795.2,5.308]
[1745672302731,2.71366,1795.3,1795.2,5.308]
[1745672303123,1.11372,1795.2,1795.1,6.7171]
[1745672303330,3.50362,1795.2,1795.1,6.7171]
[1745672304529,3.50362,1795.2,1795.1,8.3583]
[1745672305030,3.50362,1795.2,1795.1,2.4403]
[1745672307333,3.50362,1795.2,1795.1,0.7991]
[1745672308925,3.50362,1795.2,1795.1,2.3993]
[1745672309434,2.71372,1795.2,1795.1,2.3993]
[1745672309636,1.11372,1795.2,1795.1,2.3993]
[1745672310526,1.1137,1795.3,1795.1,2.3993]
[1745672310727,1.1137,1795.3,1795.2,1.6002]
[1745672310933,1.11372,1795.2,1795.1,0.7991]
[1745672311435,1.11372,1795.2,1795.1,2.4451]
[1745672314735,1.91182,1795.2,1795.1,2.4451]
[1745672319243,1.11372,1795.2,1795.1,2.4451]
[1745672320640,2.8,1795.3,1795.1,2.4451]
[1745672320840,2.8,1795.3,1795.2,1.6455]
[1745672321441,5.16164,1795.4,1795.2,1.6455]
[1745672321642,3.2078,1795.4,1795.2,1.6455]
[1745672321847,4.32141,1795.4,1795.3,0.7905]
[1745672322142,3.2078,1795.4,1795.3,41.5905]
[1745672322342,4.3214,1795.4,1795.3,43.236]
[1745672323144,4.3214,1795.4,1795.3,48.544]
[1745672324741,3.2078,1795.4,1795.3,49.65766]
[1745672325344,4.3214,1795.4,1795.3,49.65766]
[1745672326452,3.2078,1795.4,1795.3,49.65766]
[1745672326654,1.1136,1795.4,1795.3,49.65766]
[1745672327553,2.85247,1795.5,1795.3,49.65766]
[1745672327750,3.2078,1795.8,1795.5,1.11351]
[1745672327953,3.2078,1795.8,1795.5,1.11353]
[1745672327954,2.83756,1795.7,1795.5,1.11353]
[1745672328251,2.83756,1795.7,1795.5,8.09243]
[1745672328650,2.83756,1795.7,1795.6,1.6709]
[1745672329254,1.11347,1795.6,1795.5,5.308]
[1745672329455,3.64467,1795.6,1795.5,5.308]
[1745672329653,1.11393,1794.9,1794.6,7.03205]
[1745672329950,1.11395,1794.9,1794.7,1.6679]
[1745672330150,2.80747,1794.8,1794.7,1.6679]
[1745672330455,1.6935,1794.8,1794.7,1.6679]
[1745672332449,1.6935,1794.8,1794.7,2.78193]
[1745672333958,1.6935,1794.8,1794.7,1.6679]
[1745672335357,3.2721,1794.8,1794.7,1.6679]
[1745672335659,4.38607,1794.8,1794.7,1.6679]
[1745672336557,4.38607,1794.8,1794.7,2.78193]
[1745672336558,0.8385,1794.8,1794.7,2.78193]
[1745672336757,0.8385,1794.8,1794.7,1.6679]
[1745672337152,0.8385,1794.8,1794.7,6.9759]
[1745672339663,1.95247,1794.8,1794.7,6.9759]
[1745672339962,0.8385,1794.8,1794.7,6.9759]
[1745672340857,0.8385,1794.8,1794.7,8.08993]
[1745672344068,0.8385,1794.8,1794.7,6.9759]
[1745672344362,1.95247,1794.8,1794.7,6.9759]
[1745672344563,3.56677,1794.8,1794.7,6.9759]
[1745672345557,2.4528,1794.8,1794.7,6.9759]
[1745672345764,2.4528,1794.8,1794.7,8.08993]
[1745672346568,3.56677,1794.8,1794.7,6.9759]
[1745672346768,3.56677,1794.8,1794.7,5.308]
[1745672347064,3.56677,1794.8,1794.6,1.94276]
[1745672347267,1.5962,1794.7,1794.6,3.59016]
[1745672349968,2.71023,1794.7,1794.6,3.59016]
[1745672350171,1.5962,1794.7,1794.6,3.59016]
[1745672350367,1.95251,1794.8,1794.7,1.11403]
[1745672350566,1.95251,1794.8,1794.7,2.77663]
[1745672350770,0.8385,1794.8,1794.7,2.77663]
[1745672351066,2.73545,1794.9,1794.7,3.60593]
[1745672351270,2.73545,1794.9,1794.8,2.77477]
[1745672352071,2.73545,1794.9,1794.8,8.08277]
[1745672352471,1.6215,1794.9,1794.8,8.08277]
[1745672353071,4.32169,1795.0,1794.8,8.08277]
[1745672353377,4.32169,1795.0,1794.9,2.4835]
[1745672353870,3.2078,1795.0,1794.9,3.59741]
[1745672357174,6.86902,1795.1,1794.9,3.59741]
[1745672357974,6.86902,1795.1,1795.0,1.71]
[1745672359577,6.86902,1795.1,1794.9,0.8227]
[1745672359873,2.81694,1795.0,1794.9,2.5327]
[1745672361169,1.11391,1794.9,1794.7,1.94331]
[1745672361375,1.7001,1794.9,1794.7,4.49581]
[1745672361673,0.8398,1794.8,1794.7,4.49581]
[1745672361874,0.8398,1794.8,1794.7,2.74911]
[1745672362266,1.7001,1794.9,1794.8,1.11397]
[1745672362475,3.65382,1794.9,1794.7,8.05711]
[1745672362773,2.5399,1794.9,1794.7,8.05711]
[1745672362974,3.65383,1794.9,1794.7,6.9431]
[1745672363773,3.65383,1794.9,1794.7,8.05713]
[1745672363977,3.65383,1794.9,1794.7,6.9431]
[1745672364276,3.65385,1794.9,1794.7,6.9431]
[1745672364474,3.65385,1794.9,1794.7,10.1509]
[1745672364772,1.11397,1794.8,1794.7,10.1509]
[1745672364977,2.85007,1794.8,1794.7,10.1509]
[1745672365178,2.85007,1794.8,1794.7,9.3216]
[1745672365481,2.85007,1794.8,1794.7,5.308]
[1745672365879,7.85007,1794.8,1794.7,5.308]
[1745672366174,7.85007,1794.8,1794.4,4.0497]
[1745672366175,1.11415,1794.5,1794.4,3.2078]
[1745672366479,1.1143,1794.3,1794.1,45.6796]
[1745672366679,1.1143,1794.3,1794.1,4.8796]
[1745672367070,2.8178,1794.3,1794.1,4.8796]
[1745672368182,2.8178,1794.3,1794.1,5.994]
[1745672368375,1.7035,1794.3,1794.1,5.994]
[1745672368580,2.81086,1794.4,1794.1,5.994]
[1745672368973,1.11428,1794.3,1794.1,5.994]
[1745672369474,4.52365,1794.4,1794.1,5.994]
[1745672369670,1.11432,1794.3,1794.1,4.8796]
[1745672371086,1.11434,1794.2,1794.1,4.8796]
[1745672371678,2.537,1794.4,1794.1,4.8796]
[1745672372078,1.11431,1794.3,1794.1,5.99399]
[1745672372284,3.65126,1794.4,1794.1,5.99399]
[1745672372481,3.65126,1794.4,1794.1,5.99394]
[1745672372682,3.65126,1794.4,1794.1,5.99395]
[1745672372883,3.65126,1794.4,1794.2,2.78094]
[1745672373188,3.65126,1794.4,1794.3,1.6666]
[1745672375980,2.537,1794.4,1794.3,1.6666]
[1745672378990,4.32199,1794.5,1794.3,1.6666]
[1745672379190,6.84369,1794.5,1794.3,2.78086]
[1745672381188,0.8337,1794.5,1794.4,1.11422]
[1745672381491,0.8337,1794.5,1794.4,4.44602]
[1745672382191,0.8337,1794.5,1794.4,9.75402]
[1745672382984,5.15565,1794.5,1794.4,5.308]
[1745672383187,1.11428,1794.3,1794.2,1.648]
[1745672383988,1.6798,1794.4,1794.2,1.648]
[1745672383989,2.79406,1794.4,1794.2,1.648]
[1745672384396,1.71,1794.3,1794.2,1.648]
[1745672385992,2.82428,1794.3,1794.2,1.648]
[1745672386190,2.82428,1794.3,1794.2,6.956]
[1745672387096,2.82428,1794.3,1794.2,1.648]
[1745672388196,2.82428,1794.3,1794.2,6.956]
[1745672391092,2.82428,1794.3,1794.2,5.308]
[1745672391298,11.69549564,1794.3,1794.2,5.308]
[1745672391490,14.90329564,1794.3,1794.2,4.05088]
[1745672391691,14.90329564,1794.3,1794.2,0.89442]
[1745672391997,1.11465,1793.7,1793.6,0.8351]
[1745672392298,1.11465,1793.7,1793.6,2.4278]
[1745672394204,1.11471,1793.6,1793.5,0.056]
[1745672394501,9.98595107,1793.6,1793.5,1e-05]
[1745672394997,10.42027581,1793.6,1793.5,1e-05]
[1745672395200,10.42027581,1793.6,1793.0,1.6447]
[1745672395201,1.11502,1793.1,1793.0,1.6447]
[1745672395403,8.10282,1793.1,1793.0,1.6447]
[1745672399203,1.11515,1792.9,1792.8,0.839]
[1745672400409,6.9878,1793.1,1792.8,5.839]
[1745672400410,4.32284,1793.1,1792.8,5.839]
[1745672400607,4.32284,1793.1,1792.8,0.839]
[1745672400802,3.2078,1793.1,1792.9,2.4933]
[1745672401001,4.32287,1793.1,1792.9,2.4933]
[1745672401202,4.32287,1793.1,1793.0,1.6408]
[1745672401203,1.11507,1793.1,1793.0,1.6408]
[1745672402105,1.11509,1793.0,1792.3,3.782]
[1745672402312,1.11539,1792.6,1792.5,0.8081]
[1745672403309,1.11539,1792.6,1792.5,6.1161]
[1745672403606,3.2078,1793.1,1792.5,11.1161]
[1745672403907,3.2078,1793.3,1792.9,1.11511]
[1745672404211,1.115,1793.2,1793.0,1.6801]
[1745672404508,1.11502,1793.1,1793.0,1.6801]
[1745672405200,1.11502,1793.1,1793.0,8.6957]
[1745672406307,4.32282,1793.1,1793.0,7.8237]
[1745672406510,8.10482,1793.1,1793.0,5.308]
[1745672406702,8.98415501,1793.1,1793.0,5.308]
[1745672406903,13.98415501,1793.1,1793.0,5.308]
[1745672407108,1.11521,1792.8,1792.7,2.5774]
[1745672407308,4.32301,1792.8,1792.7,2.5774]
[1745672407505,8.10201,1792.8,1792.7,2.5774]
[1745672407807,4.89421,1792.8,1792.7,2.5774]
[1745672408010,3.779,1792.8,1792.7,2.5774]
[1745672409610,3.779,1792.8,1792.7,3.3752]
[1745672409806,4.32293,1793.0,1792.7,4.49047]
[1745672410011,4.89515,1792.9,1792.8,1.7035]
[1745672410818,3.78,1792.9,1792.8,1.7035]
[1745672411007,4.89515,1792.9,1792.8,1.7035]
[1745672411817,3.78,1792.9,1792.8,1.7035]
[1745672412218,4.89515,1792.9,1792.8,1.7035]
[1745672413309,1.11537,1792.6,1792.3,9.1258]
[1745672413610,1.11537,1792.6,1792.4,3.3797]
[1745672413919,1.11565,1792.1,1792.0,5.918]
[1745672414115,1.11562,1792.2,1792.0,0.8319]
[1745672414608,3.2078,1792.1,1791.6,1.11596]
[1745672414812,4.89563,1792.2,1791.7,0.8319]
[1745672415014,4.89559,1792.2,1791.7,4.0397]
[1745672415217,4.89559,1792.2,1791.8,3.55291]
[1745672415418,1.11565,1792.1,1791.9,1.5829]
[1745672415719,3.2078,1792.3,1791.9,1.5829]
[1745672416020,1.11543,1792.5,1792.2,1.11557]
[1745672416218,4.89543,1792.5,1792.3,3.269]
[1745672416419,4.89543,1792.5,1792.4,1.5829]
[1745672416807,1.11537,1792.6,1792.4,1.5829]
[1745672417011,4.89537,1792.6,1792.4,1.5829]
[1745672417310,3.2078,1792.7,1792.4,6.8909]
[1745672417515,1.1154,1792.5,1792.4,6.8909]
[1745672417713,1.1154,1792.5,1792.4,5.308]
[1745672419223,1.11546,1792.4,1792.3,1.6861]
[1745672419519,1.11544,1792.5,1792.3,1.6861]
[1745672419719,1.11544,1792.5,1792.3,2.80162]
[1745672420118,1.11536,1792.6,1792.4,1.11546]
[1745672420322,1.11536,1792.6,1792.3,8.10958]
[1745672421314,1.11528,1792.7,1792.4,1.11545]
[1745672421510,1.11514,1793.0,1792.6,1.11531]
[1745672421718,3.781,1793.0,1792.7,0.87]
[1745672421922,1.1152,1792.9,1792.8,0.8246]
[1745672423926,4.323,1792.9,1792.8,0.8246]
[1745672424220,6.7642,1792.9,1792.8,0.8246]
[1745672425019,3.2078,1792.9,1792.8,0.8246]
[1745672425717,3.2078,1792.9,1792.8,1.93981]
[1745672426124,2.78682,1793.6,1792.8,11.1326]
[1745672426125,3.2078,1793.2,1792.8,11.1326]
[1745672426324,3.22657309,1793.6,1793.1,1.11501]
[1745672426325,4.89492,1793.3,1793.1,1.11501]
[1745672426519,4.32267,1793.4,1793.2,2.79166]
[1745672426822,1.11487,1793.4,1793.2,2.79166]
[1745672427331,1.11487,1793.4,1793.2,8.09966]
[1745672427719,1.11487,1793.4,1793.2,6.9847]
[1745672428128,1.1149,1793.3,1793.2,6.9847]
[1745672428322,1.1149,1793.3,1793.2,6.1672]
[1745672428629,6.1149,1793.3,1793.2,5.308]
[1745672428925,6.1149,1793.3,1793.2,2.1002]
[1745672428926,9.3227,1793.3,1793.2,2.1002]
[1745672429130,1.11515,1792.9,1792.8,1.6366]
[1745672429428,1.11515,1792.9,1792.8,0.805]
[1745672431628,6.9878,1793.1,1792.8,1.92017]
[1745672431831,3.2078,1793.1,1792.8,1.92017]
[1745672432028,3.2078,1793.1,1792.9,1.11514]
[1745672432424,3.2078,1793.1,1792.9,41.91514]
[1745672432730,1.11499,1793.2,1792.9,41.91514]
[1745672433028,1.11502,1793.1,1793.0,1.7057]
[1745672433628,1.11502,1793.1,1793.0,2.5228]
[1745672434228,1.11502,1793.1,1793.0,7.8308]
[1745672436333,1.11498,1793.2,1793.0,11.0386]
[1745672436532,4.89493,1793.3,1793.1,1.7485]
[1745672436732,4.89493,1793.3,1793.2,0.8416]
[1745672437133,1.11493,1793.3,1793.2,6.1496]
[1745672437329,4.6302,1793.5,1793.2,15.47233]
[1745672437330,1.11482,1793.5,1793.2,15.47233]
[1745672437536,1.11482,1793.5,1793.3,2.5805]
[1745672437832,1.11473,1793.6,1793.4,1.7485]
[1745672438234,1.11473,1793.6,1793.4,7.0565]
[1745672438628,5.7101,1793.8,1793.5,1.7485]
[1745672438829,1.11465,1793.7,1793.6,0.8612]
[1745672439231,1.11461,1793.8,1793.6,5.18369]
[1745672439424,1.11457,1793.9,1793.6,5.18369]
[1745672439627,1.11457,1793.9,1793.7,0.8584]
[1745672440327,1.11459,1793.8,1793.7,0.8584]
[1745672441235,1.11459,1793.8,1793.7,6.1664]
[1745672442735,1.11455,1793.9,1793.7,7.28104]
[1745672443134,1.11455,1793.9,1793.7,6.1664]
[1745672444436,1.11455,1793.9,1793.7,7.28105]
[1745672445741,2.73271,1794.0,1793.8,1.11458]
[1745672446033,1.11435,1794.2,1794.0,1.11444]
[1745672446234,4.32211,1794.3,1794.1,1.90369]
[1745672446633,4.32211,1794.3,1794.1,0.7893]
[1745672447035,4.32211,1794.3,1794.1,1.90369]
[1745672447238,1.11434,1794.2,1794.1,0.7893]
[1745672451546,2.71674,1794.2,1794.1,0.7893]
[1745672451746,3.53934,1794.2,1794.1,0.7893]
[1745672451942,3.63056766,1794.2,1794.1,0.7893]
[1745672452646,3.63056732,1794.2,1794.1,0.7893]
[1745672453442,3.63056732,1794.2,1794.1,2.4586]
[1745672453651,0.09122732,1794.2,1794.1,2.4586]
[1745672453847,1.11434,1794.2,1794.1,2.4586]
[1745672455147,8.776,1794.2,1793.7,3.2078]
[1745672455444,1.11484,1793.4,1793.3,5.918]
[1745672455643,1.11478,1793.5,1793.4,1.7353]
[1745672456152,2.79406,1793.6,1793.4,7.0433]
[1745672456347,2.79406,1793.6,1793.5,1.7353]
[1745672456653,1.11478,1793.5,1793.4,5.308]
[1745672456853,2.79408,1793.5,1793.4,5.308]
[1745672457060,7.79408,1793.5,1793.4,5.308]
[1745672457259,1.11484,1793.4,1793.3,1.7353]
[1745672457455,2.73974,1793.4,1793.3,1.7353]
[1745672458163,1.1149,1793.3,1793.2,3.2078]
[1745672458458,2.7398,1793.3,1793.2,3.2078]
[1745672458660,1.11496,1793.2,1793.1,1.6775]
[1745672458862,2.73986,1793.2,1793.1,1.6775]
[1745672459855,1.11496,1793.2,1793.1,1.6775]
[1745672462164,2.80106,1793.2,1793.1,1.6775]
[1745672464559,1.11496,1793.2,1793.1,1.6775]
[1745672466869,2.78688,1793.6,1793.1,1.6775]
[1745672466870,3.778,1793.6,1793.2,1.11496]
[1745672467166,1.1148,1793.5,1793.3,1.6709]
[1745672467362,3.2078,1793.7,1793.3,1.6709]
[1745672467561,4.32248,1793.7,1793.4,1.11479]
[1745672467762,1.11471,1793.6,1793.5,5.7016]
[1745672468064,1.11471,1793.6,1793.5,11.0096]
[1745672471368,1.11471,1793.6,1793.5,12.12438]
[1745672471574,1.1147,1793.7,1793.5,12.12438]
[1745672471758,1.11464,1793.8,1793.6,3.6269]
[1745672471963,1.11458,1793.9,1793.7,2.76805]
[1745672472166,1.11458,1793.9,1793.8,1.6534]
[1745672472966,1.11458,1793.9,1793.8,42.4534]
[1745672473271,1.11465,1793.7,1793.6,0.8588]
[1745672473474,1.11464,1793.8,1793.6,2.5903]
[1745672473771,1.11464,1793.8,1793.7,1.7315]
[1745672475068,1.11464,1793.8,1793.7,7.0395]
[1745672475471,1.11456,1793.9,1793.7,11.36195]
[1745672475774,1.11453,1793.9,1793.8,1.7241]
[1745672476274,1.11453,1793.9,1793.8,7.0321]
[1745672477766,1.11451,1794.0,1793.8,8.14666]
[1745672477968,1.11451,1794.0,1793.9,2.572]
[1745672478171,1.11451,1794.0,1793.9,7.88]
[1745672478962,3.2078,1794.3,1793.9,7.88]
[1745672479266,1.5877,1794.7,1794.1,3.2078]
[1745672479471,1.9621,1794.8,1794.6,1.11409]
[1745672479666,1.9621,1794.8,1794.7,1.7127]
[1745672479974,1.96207,1794.8,1794.7,1.7127]
[1745672485070,0.8481,1794.8,1794.7,1.7127]
[1745672485764,2.70165,1794.9,1794.7,1.7127]
[1745672485970,1.11397,1794.8,1794.7,1.7127]
[1745672489174,1.11397,1794.8,1794.7,7.0207]
[1745672490173,1.11397,1794.8,1794.7,1.7127]
[1745672493977,1.11397,1794.8,1794.7,2.5578]
[1745672494274,1.11397,1794.8,1794.7,5.308]
[1745672494474,1.11397,1794.8,1794.7,6.9922]
[1745672503977,9.32177,1794.8,1794.7,5.308]
[1745672504178,1.11409,1794.6,1794.5,0.0265]
[1745672504783,1.11409,1794.6,1794.5,1.6425]
[1745672506379,2.69109,1794.6,1794.5,1.6425]
[1745672506578,2.78226614,1794.6,1794.5,1.6425]
[1745672506778,2.69109,1794.6,1794.5,0.0265]
[1745672506979,2.78226419,1794.6,1794.5,0.0265]
[1745672507177,1.11415,1794.5,1794.4,0.8479]
[1745672507380,2.69115,1794.5,1794.4,2.589]
[1745672509081,1.11415,1794.5,1794.4,2.589]
[1745672516180,1.11415,1794.5,1794.4,7.897]
[1745672517686,1.11405,1794.7,1794.4,12.897]
[1745672517995,1.11405,1794.7,1794.5,1.659]
[1745672518188,1.11409,1794.6,1794.5,1.659]
[1745672519086,3.2078,1794.8,1794.5,6.967]
[1745672519291,1.11403,1794.7,1794.6,0.8336]
[1745672520997,1.11403,1794.7,1794.5,5.308]
[1745672520998,1.11409,1794.6,1794.5,5.308]
[1745672521587,2.75999,1794.6,1794.5,5.308]
[1745672522285,1.11415,1794.5,1794.4,0.8479]
[1745672523197,1.11415,1794.5,1794.4,6.1559]
[1745672525998,1.11414,1794.6,1794.4,6.1559]
[1745672527493,1.11414,1794.6,1794.4,6.1824]
[1745672527909,1.11406,1794.7,1794.5,3.2078]
[1745672528108,1.11406,1794.7,1794.6,0.8518]
[1745672529310,6.9788,1795.0,1794.6,0.8518]
[1745672529702,1.11401,1794.8,1794.6,1.96587]
[1745672530715,1.11403,1794.7,1794.6,1.96587]
[1745672532909,1.11403,1794.7,1794.6,2.4983]
[1745672534012,1.11398,1794.8,1794.6,2.4983]
[1745672534311,1.11398,1794.8,1794.7,1.6605]
[1745672535206,1.11398,1794.8,1794.7,6.9685]
[1745672536012,1.11398,1794.8,1794.7,8.08253]
[1745672536915,1.11398,1794.8,1794.7,6.9685]
[1745672537508,1.11397,1794.8,1794.7,6.9685]
[1745672537712,1.11397,1794.8,1794.7,7.7786]
[1745672538106,1.11397,1794.8,1794.7,2.4706]
[1745672538302,1.11395,1794.9,1794.7,2.4706]
[1745672538502,1.11395,1794.9,1794.8,2.4404]
[1745672540406,1.11409,1794.6,1794.5,5.918]
[1745672540614,1.11409,1794.6,1794.5,7.5653]
[1745672541105,1.11409,1794.6,1794.5,12.8733]
[1745672541302,1.6403,1794.7,1794.5,12.8733]
[1745672541303,2.75438,1794.7,1794.5,12.8733]
[1745672541502,1.6403,1794.7,1794.6,1.6473]
[1745672541711,1.11397,1794.8,1794.6,3.58628]
[1745672541906,1.11397,1794.8,1794.7,0.8617]
[1745672542106,1.11397,1794.8,1794.7,2.509]
[1745672542314,1.11397,1794.8,1794.7,2.5355]
[1745672547917,3.58057,1794.8,1794.7,2.5355]
[1745672553417,1.11387,1795.0,1794.7,2.5355]
[1745672553622,1.11391,1794.9,1794.8,4.7875]
[1745672553814,1.11386,1795.0,1794.8,5.90145]
[1745672554016,1.11386,1795.0,1794.9,2.4227]
[1745672554217,4.0254,1795.3,1794.9,3.53658]